bitfinex/quotes_ETHUSD_20240614
["timestamp","ask_amount","ask_price","bid_price","bid_amount"]
[1718359914194,0.38827372,3514.0,3513.7,1.82529965]
[1718359924238,0.38827372,3514.0,3513.8,0.75791349]
[1718359924438,0.38827372,3514.0,3513.9,3.77744514]
[1718359929125,0.38827372,3514.0,3513.9,5.48744514]
[1718359930162,0.38827372,3514.0,3513.9,6.18844514]
[1718359930365,0.38827372,3514.0,3513.9,6.58787557]
[1718359935554,0.38827372,3514.0,3513.9,3.54287557]
[1718359949057,0.38827372,3514.0,3513.9,5.89967557]
[1718359949262,0.38827372,3514.0,3513.9,6.14567951]
[1718359949594,0.38827372,3514.0,3513.9,6.84667951]
[1718359951487,0.38827372,3514.0,3513.9,6.14567951]
[1718359951799,0.38827372,3514.0,3513.9,6.84667951]
[1718359954440,0.38827372,3514.0,3513.9,6.84666033]
[1718359957244,0.38827372,3514.0,3513.9,7.44338601]
[1718359957440,0.38827372,3514.0,3513.9,6.84666033]
[1718359958416,0.38827372,3514.0,3513.9,7.44338601]
[1718359960630,0.27931751,3516.5,3513.9,7.44338601]
[1718359960631,0.49195079,3516.0,3514.1,1.71]
[1718359960947,2.2935,3515.7,3514.9,1.71]
[1718359961103,0.701,3515.8,3514.9,1.71]
[1718359961104,2.2747,3515.5,3515.0,1.43344514]
[1718359962359,2.4905,3515.3,3515.0,1.43344514]
[1718359964052,2.3879,3515.1,3514.7,1.71]
[1718359964239,2.3879,3515.1,3514.8,1.43344514]
[1718359964555,2.3879,3514.9,3514.3,1.709]
[1718359964716,2.3879,3514.9,3514.4,1.43344514]
[1718359964918,0.55,3514.8,3514.4,1.43344514]
[1718359965115,0.61689151,3514.8,3514.4,1.43344514]
[1718359965358,2.2619,3514.7,3514.4,1.43344514]
[1718359965716,2.3363,3515.5,3514.6,1.709]
[1718359966079,0.61689151,3515.4,3514.7,3.14244514]
[1718359966717,2.2679,3515.3,3514.7,3.14244514]
[1718359966917,0.55,3515.2,3514.7,3.14244514]
[1718359968801,2.3442,3515.1,3514.7,1.43344514]
[1718359968961,0.55,3515.0,3514.7,1.43344514]
[1718359970063,0.61689151,3515.0,3514.7,1.43344514]
[1718359973680,0.61689151,3515.0,3514.3,1.709]
[1718359974010,0.61689151,3515.0,3514.4,1.43344514]
[1718359980601,0.55,3515.0,3514.4,1.43344514]
[1718359982017,0.55,3515.0,3514.5,0.75790281]
[1718359982223,0.55,3515.0,3514.6,1.43344514]
[1718359982424,2.3314,3515.4,3514.7,0.75789818]
[1718359982628,0.55,3515.3,3514.8,1.43344514]
[1718359983827,0.61689151,3515.3,3514.8,1.43344514]
[1718359984392,0.06689151,3515.2,3514.8,1.43344514]
[1718359984706,0.55,3515.1,3514.8,1.43344514]
[1718359985401,0.55,3515.2,3514.8,1.43344514]
[1718359985794,0.06689151,3515.1,3514.8,1.43344514]
[1718359986130,2.4791,3515.0,3514.8,1.43344514]
[1718359986828,0.06689151,3514.9,3514.4,1.709]
[1718359986988,0.06689151,3514.9,3514.2,7.27]
[1718359986989,0.55,3514.8,3514.2,7.27]
[1718359987189,0.06689151,3514.7,3514.3,1.43344514]
[1718359987412,0.55,3514.6,3514.3,1.43344514]
[1718359990254,0.55,3514.8,3514.3,1.43344514]
[1718359990408,2.35879151,3514.7,3514.3,1.43344514]
[1718359990605,0.55,3514.6,3514.3,1.43344514]
[1718359990918,2.2919,3514.4,3513.6,5.30559593]
[1718359991278,2.2919,3514.4,3513.7,1.43344514]
[1718359991279,0.61689151,3514.3,3513.7,1.43344514]
[1718359991802,0.06689151,3514.2,3513.7,1.43344514]
[1718359992006,0.55,3514.1,3513.7,1.43344514]
[1718359992409,0.55,3514.3,3513.7,1.43344514]
[1718359993334,0.06689151,3514.2,3513.7,1.43344514]
[1718359993532,0.55,3514.1,3513.7,1.43344514]
[1718359993903,0.55,3514.2,3513.7,1.43344514]
[1718359995040,0.55,3514.2,3513.7,2.13444514]
[1718359995452,0.55,3514.3,3513.7,2.13444514]
[1718359997831,0.55,3514.3,3513.7,4.42364514]
[1718360000823,0.55,3514.3,3513.7,6.13264514]
[1718360001041,0.55,3514.3,3513.9,0.701]
[1718360001331,0.55,3514.3,3514.0,1.43344514]
[1718360005253,2.4441,3514.6,3514.0,2.13444514]
[1718360005551,0.55,3514.5,3514.0,2.13444514]
[1718360005754,0.55,3514.5,3514.1,0.38434451]
[1718360005915,0.55,3514.5,3514.2,1.43344514]
[1718360006949,0.61689151,3514.5,3514.2,1.43344514]
[1718360020889,0.61689151,3514.5,3513.6,4.0841]
[1718360021059,1.31789151,3514.5,3513.7,3.14244514]
[1718360022566,2.2921,3514.4,3513.7,3.14244514]
[1718360022775,0.61689151,3514.3,3513.7,3.14244514]
[1718360023089,0.06689151,3514.2,3513.7,3.14244514]
[1718360023296,0.55,3514.1,3513.7,3.14244514]
[1718360027879,0.55,3514.1,3513.7,1.43344514]
[1718360041306,0.06689151,3514.0,3513.7,1.43344514]
[1718360041506,2.9414,3513.9,3513.5,7.27]
[1718360041703,0.06689151,3513.8,3513.5,7.27]
[1718360041932,0.55,3513.7,3513.5,7.27]
[1718360042118,0.55,3513.7,3513.1,1.709]
[1718360042419,0.55,3513.7,3513.2,1.43344514]
[1718360047003,0.06689151,3513.6,3513.2,1.43344514]
[1718360052558,0.55,3513.7,3513.2,1.43344514]
[1718360057766,0.06689151,3513.6,3513.2,1.43344514]
[1718360063251,0.61689151,3513.7,3513.2,1.43344514]
[1718360064277,0.55,3513.7,3513.2,1.43344514]
[1718360067670,2.4266,3514.6,3513.6,0.701]
[1718360067846,2.49349151,3514.5,3513.7,1.43344514]
[1718360068166,3.19449151,3514.5,3513.7,1.43344514]
[1718360068478,3.81394066,3514.5,3513.7,1.43344514]
[1718360068872,0.55,3514.4,3513.7,1.43344514]
[1718360069074,0.06689151,3514.3,3513.7,1.43344514]
[1718360069373,0.55,3514.2,3513.7,1.43344514]
[1718360073602,0.61689151,3514.2,3513.7,1.43344514]
[1718360073790,0.55,3514.2,3513.8,0.44400411]
[1718360074147,0.06689151,3514.1,3513.9,1.43344514]
[1718360074607,0.06689151,3514.2,3513.9,1.43344514]
[1718360074806,0.55,3514.1,3513.9,1.43344514]
[1718360075192,0.55,3514.1,3513.9,1.69129007]
[1718360075395,0.55,3514.3,3513.9,1.69129007]
[1718360087121,0.06689151,3514.6,3513.9,3.40029007]
[1718360087309,0.701,3515.1,3514.2,0.701]
[1718360087512,0.06689151,3515.0,3514.3,3.78824514]
[1718360088225,2.4431,3514.9,3514.3,1.43344514]
[1718360088555,0.61689151,3514.8,3514.3,1.43344514]
[1718360088735,0.06689151,3514.7,3514.3,1.43344514]
[1718360088940,0.55,3514.6,3514.3,1.43344514]
[1718360103760,2.4027,3514.4,3513.9,7.27]
[1718360103975,0.61689151,3514.3,3513.9,8.70344514]
[1718360104271,0.61689151,3514.3,3513.9,1.43344514]
[1718360106732,0.55,3514.3,3513.9,1.43344514]
[1718360106937,0.61689151,3514.6,3513.9,1.64688965]
[1718360107236,0.61689151,3514.6,3513.9,1.43344514]
[1718360108239,0.61689151,3514.6,3514.0,1.43344514]
[1718360111469,0.55,3514.6,3514.0,1.43344514]
[1718360112354,0.61689151,3514.6,3514.0,1.43344514]
[1718360112757,0.55,3514.6,3514.0,3.14244514]
[1718360113862,0.61689151,3514.6,3514.0,3.14244514]
[1718360115779,2.4916,3514.5,3514.0,1.43344514]
[1718360115943,0.61689151,3514.4,3514.0,1.43344514]
[1718360116474,2.2769,3514.3,3513.7,1.709]
[1718360116689,2.2769,3514.3,3513.8,1.43344514]
[1718360116690,0.61689151,3514.2,3513.8,1.43344514]
[1718360118246,0.55,3514.2,3513.8,1.43344514]
[1718360121346,3.0,3515.3,3513.8,1.43344514]
[1718360121347,2.4997,3514.8,3513.8,6.19244514]
[1718360121667,0.06689151,3514.7,3513.8,6.19244514]
[1718360122761,0.55,3514.6,3513.8,6.19244514]
[1718360122987,0.55,3514.6,3513.9,1.709]
[1718360123192,0.55,3514.6,3514.0,1.43344514]
[1718360124005,0.06689151,3514.5,3514.0,1.43344514]
[1718360124200,0.55,3514.4,3514.0,1.43344514]
[1718360124764,0.55,3514.6,3514.0,1.43344514]
[1718360124966,0.06689151,3514.5,3514.0,1.43344514]
[1718360125271,0.55,3514.4,3514.0,1.43344514]
[1718360125977,0.55,3514.6,3514.0,1.43344514]
[1718360126179,0.06689151,3514.5,3514.0,1.43344514]
[1718360126390,0.55,3514.4,3514.0,1.43344514]
[1718360126984,0.55,3514.6,3514.0,1.43344514]
[1718360127374,0.55,3514.6,3514.1,0.05690934]
[1718360127700,0.55,3514.7,3514.4,0.701]
[1718360127902,3.0,3515.9,3514.4,0.701]
[1718360127903,2.2716,3515.2,3514.5,1.43344514]
[1718360128079,0.61689151,3515.1,3514.5,1.43344514]
[1718360130466,0.55,3515.1,3514.5,1.43344514]
[1718360130669,0.55,3515.1,3514.6,2.3114]
[1718360130906,0.61689151,3515.3,3514.7,1.43344514]
[1718360131119,2.298,3515.4,3514.7,1.43344514]
[1718360132092,0.06689151,3515.3,3514.7,1.43344514]
[1718360132293,0.55,3515.2,3514.7,1.43344514]
[1718360133004,0.55,3515.3,3514.7,1.43344514]
[1718360133373,0.55,3515.3,3514.8,0.701]
[1718360133568,0.61689151,3515.6,3514.9,1.43344514]
[1718360133878,0.61689151,3515.6,3515.0,2.2966]
[1718360134080,0.61689151,3515.6,3515.1,1.43344514]
[1718360134969,0.55,3515.6,3515.1,1.43344514]
[1718360135785,0.61689151,3515.6,3515.1,1.87654965]
[1718360135987,0.55,3515.6,3515.1,1.87654965]
[1718360136177,0.55,3515.8,3515.1,1.87654965]
[1718360136395,0.06689151,3515.7,3515.1,3.58554965]
[1718360136573,0.55,3515.6,3515.1,3.58554965]
[1718360136779,0.55,3515.6,3515.2,0.34818043]
[1718360137080,0.55,3515.6,3515.3,1.43344514]
[1718360141501,0.55,3515.9,3515.3,1.43344514]
[1718360141846,0.06689151,3515.8,3515.3,1.43344514]
[1718360142141,0.55,3515.7,3515.3,1.43344514]
[1718360143533,0.55,3516.0,3515.3,1.43344514]
[1718360144413,0.06689151,3515.9,3515.3,1.43344514]
[1718360144741,0.55,3515.8,3515.3,1.43344514]
[1718360144934,0.06689151,3515.7,3515.3,1.43344514]
[1718360145104,0.55,3515.6,3515.3,1.43344514]
[1718360145800,0.55,3515.9,3515.3,1.43344514]
[1718360146000,0.06689151,3515.8,3515.3,1.43344514]
[1718360146238,0.55,3515.7,3515.3,1.43344514]
[1718360146748,0.55,3515.7,3515.4,3.116]
[1718360146899,0.55,3516.0,3515.5,1.43344514]
[1718360148051,2.4238,3516.6,3515.8,2.41]
[1718360148248,0.06689151,3516.5,3516.0,0.701]
[1718360148449,0.06689151,3516.5,3516.1,1.43344514]
[1718360149247,2.4975,3517.0,3516.2,1.709]
[1718360149475,0.76789151,3516.9,3516.3,1.43344514]
[1718360149637,1.01764151,3516.9,3516.3,1.43344514]
[1718360150235,0.06689151,3516.9,3516.3,1.43344514]
[1718360150461,0.55,3516.8,3516.3,1.43344514]
[1718360150653,0.06689151,3516.7,3516.3,1.43344514]
[1718360150849,0.55,3516.6,3516.3,1.43344514]
[1718360151455,0.55,3516.8,3516.3,1.43344514]
[1718360151650,1.22485,3516.8,3515.8,2.312]
[1718360151969,2.2882,3516.7,3515.9,1.43344514]
[1718360152176,0.61689151,3516.6,3515.9,1.43344514]
[1718360153753,0.61689151,3516.6,3515.9,2.13444514]
[1718360156992,0.61689151,3516.6,3516.1,0.701]
[1718360157194,0.61689151,3516.6,3516.2,1.81778965]
[1718360159177,0.55,3516.6,3516.2,1.81778965]
[1718360159368,0.06689151,3516.9,3516.2,1.81778965]
[1718360159369,0.55,3516.8,3516.2,1.81778965]
[1718360159573,0.06689151,3516.7,3516.2,1.81778965]
[1718360159769,0.55,3516.6,3516.2,1.81778965]
[1718360160664,0.55,3516.6,3516.2,4.07948965]
[1718360161179,0.55,3516.8,3516.2,4.07948965]
[1718360161380,0.55,3516.8,3516.2,3.69514514]
[1718360161785,0.61689151,3516.8,3516.2,3.69514514]
[1718360162405,0.55,3516.8,3516.2,3.69514514]
[1718360162603,0.55,3516.8,3516.2,5.40414514]
[1718360162783,0.55,3516.8,3516.2,6.10514514]
[1718360163905,0.55,3516.8,3516.2,5.40414514]
[1718360165119,0.55,3516.8,3516.3,0.701]
[1718360165315,0.55,3516.8,3516.4,1.43344514]
[1718360166418,0.55,3516.8,3516.4,2.13444514]
[1718360166622,0.61689151,3516.9,3516.4,2.13444514]
[1718360166872,0.06689151,3517.1,3516.4,2.13444514]
[1718360167064,0.55,3517.0,3516.4,2.13444514]
[1718360167269,0.06689151,3516.9,3516.4,2.13444514]
[1718360167535,0.55,3516.8,3516.4,2.13444514]
[1718360167945,0.55,3517.0,3516.4,2.13444514]
[1718360168152,0.06689151,3516.9,3516.4,2.13444514]
[1718360168490,0.55,3516.8,3516.4,2.13444514]
[1718360168976,0.55,3517.0,3516.4,2.13444514]
[1718360171567,0.06689151,3516.9,3516.4,1.43344514]
[1718360171770,3.5753,3516.8,3516.4,1.43344514]
[1718360172074,0.06689151,3516.7,3516.4,1.43344514]
[1718360172385,0.55,3516.6,3516.0,1.709]
[1718360172536,0.55,3516.6,3516.1,1.43344514]
[1718360173194,0.55,3516.6,3516.1,3.84344514]
[1718360173379,0.55,3516.7,3516.1,3.84344514]
[1718360173591,0.55,3516.9,3516.3,2.41]
[1718360173893,0.61689151,3517.1,3516.4,1.49031551]
[1718360174409,0.61689151,3517.1,3516.4,1.43344514]
[1718360177270,0.701,3517.0,3516.4,1.43344514]
[1718360177588,0.61689151,3516.9,3516.4,1.43344514]
[1718360181337,2.4553,3516.8,3515.9,9.5666]
[1718360181494,2.2502,3516.2,3515.9,8.70344514]
[1718360181698,0.06689151,3516.1,3515.9,7.27]
[1718360181898,0.55,3516.0,3515.9,7.27]
[1718360182807,0.55,3516.0,3515.3,2.41]
[1718360183006,0.06689151,3515.9,3515.4,1.43344514]
[1718360183215,0.55,3515.8,3515.5,0.38434451]
[1718360183421,0.55,3515.8,3515.6,1.43344514]
[1718360184509,0.55,3516.0,3515.6,1.43344514]
[1718360184744,0.06689151,3515.9,3515.6,1.43344514]
[1718360184916,0.55,3515.8,3515.6,1.43344514]
[1718360186146,0.55,3516.0,3515.6,1.43344514]
[1718360186350,0.06689151,3515.9,3515.6,1.43344514]
[1718360186553,0.55,3515.8,3515.6,1.43344514]
[1718360187048,0.55,3516.1,3515.6,1.43344514]
[1718360187852,0.06689151,3516.0,3515.6,1.43344514]
[1718360188027,0.55,3515.9,3515.6,1.43344514]
[1718360188537,0.55,3516.0,3515.6,1.43344514]
[1718360188734,0.06689151,3515.9,3515.6,1.43344514]
[1718360188941,0.55,3515.8,3515.6,1.43344514]
[1718360190146,0.55,3516.0,3515.6,1.43344514]
[1718360190341,0.06689151,3515.9,3515.6,1.43344514]
[1718360190648,0.55,3515.8,3515.6,1.43344514]
[1718360191056,0.55,3516.0,3515.6,1.43344514]
[1718360191273,0.06689151,3515.9,3515.2,1.709]
[1718360191548,0.55,3515.8,3515.3,1.43344514]
[1718360191727,0.06689151,3515.7,3515.3,1.43344514]
[1718360191923,0.55,3515.6,3515.3,1.43344514]
[1718360192355,0.55,3515.8,3515.3,1.43344514]
[1718360192516,0.06689151,3515.7,3515.3,1.43344514]
[1718360192854,0.55,3515.6,3515.3,1.43344514]
[1718360193545,0.55,3515.8,3515.3,1.43344514]
[1718360193749,0.06689151,3515.7,3515.3,1.43344514]
[1718360193914,0.55,3515.6,3515.3,1.43344514]
[1718360194822,0.61689151,3515.8,3515.3,1.43344514]
[1718360195014,0.06689151,3515.7,3515.3,1.43344514]
[1718360195218,0.55,3515.6,3515.3,1.43344514]
[1718360201182,0.55,3515.7,3515.3,1.43344514]
[1718360207573,0.55,3515.8,3515.4,2.3737]
[1718360207752,0.61689151,3516.1,3515.5,1.43344514]
[1718360208085,0.61689151,3516.1,3515.6,0.45081451]
[1718360208288,0.61689151,3516.1,3515.6,1.88425965]
[1718360215188,2.3308,3516.8,3515.7,1.43344514]
[1718360215405,2.3308,3516.3,3515.7,1.43344514]
[1718360215558,2.4621,3516.6,3515.7,1.43344514]
[1718360215889,0.701,3516.5,3515.7,1.43344514]
[1718360216189,0.06689151,3516.4,3515.7,1.43344514]
[1718360216526,0.55,3516.3,3515.7,1.43344514]
[1718360219290,1.251,3516.3,3515.7,1.43344514]
[1718360222080,0.55,3516.3,3515.7,1.43344514]
[1718360222283,0.61689151,3516.4,3515.8,2.57304451]
[1718360222484,0.61689151,3516.4,3515.9,1.43344514]
[1718360224086,0.55,3516.4,3516.0,3.1227]
[1718360224287,2.4278,3517.2,3516.1,1.91058557]
[1718360224594,0.76789151,3517.1,3516.1,1.91058557]
[1718360224794,0.06689151,3517.1,3516.1,2.61158557]
[1718360225110,0.06689151,3517.1,3516.3,0.701]
[1718360225293,0.06689151,3517.1,3516.4,1.74758965]
[1718360225602,0.55,3517.0,3516.4,1.74758965]
[1718360225812,0.06689151,3516.9,3516.4,1.74758965]
[1718360225971,0.55,3516.8,3516.4,1.74758965]
[1718360226176,0.06689151,3516.7,3516.4,1.74758965]
[1718360226421,0.55,3516.6,3516.5,0.41955897]
[1718360228488,0.55,3516.6,3516.5,1.85300411]
[1718360228684,0.55,3516.6,3516.5,4.28010411]
[1718360233028,0.76789151,3517.2,3516.5,4.28010411]
[1718360233232,0.55,3517.1,3516.6,1.43344514]
[1718360233533,0.06689151,3517.0,3516.6,1.80517111]
[1718360233706,0.55,3516.9,3516.6,1.80517111]
[1718360234428,0.55,3517.2,3516.6,1.80517111]
[1718360235213,0.55,3517.2,3516.7,0.41955897]
[1718360235634,0.06689151,3517.1,3516.7,1.85300411]
[1718360235805,0.55,3517.0,3516.7,1.85300411]
[1718360236619,0.55,3517.2,3516.7,1.85300411]
[1718360236815,0.06689151,3517.1,3516.7,1.85300411]
[1718360237032,0.55,3517.0,3516.7,1.85300411]
[1718360237430,0.55,3517.2,3516.8,0.37172597]
[1718360238295,0.55,3517.2,3516.8,1.80517111]
[1718360238496,0.701,3517.4,3516.8,1.80517111]
[1718360238734,0.61689151,3517.3,3516.8,1.80517111]
[1718360239620,0.61689151,3517.3,3516.9,2.2674]
[1718360239824,0.61689151,3517.3,3516.9,2.68695897]
[1718360241816,0.55,3517.3,3516.9,2.68695897]
[1718360242013,0.55,3517.4,3516.9,2.2674]
[1718360242413,0.61689151,3517.4,3516.9,2.2674]
[1718360243354,0.55,3517.4,3517.0,2.13444514]
[1718360243550,0.61689151,3517.6,3517.0,1.43344514]
[1718360248415,0.06689151,3517.5,3517.0,1.43344514]
[1718360248713,0.55,3517.4,3517.0,1.43344514]
[1718360249316,0.55,3517.6,3517.0,1.43344514]
[1718360249510,0.06689151,3517.5,3517.0,1.43344514]
[1718360249761,0.55,3517.4,3517.0,1.43344514]
[1718360250752,0.55,3517.6,3517.0,1.43344514]
[1718360251047,0.06689151,3517.5,3517.0,1.43344514]
[1718360251250,0.55,3517.4,3517.0,1.43344514]
[1718360252754,0.55,3517.7,3517.0,1.43344514]
[1718360253656,0.06689151,3517.6,3517.0,1.43344514]
[1718360253858,0.55,3517.5,3517.0,1.43344514]
[1718360254456,0.55,3517.6,3517.0,1.43344514]
[1718360254659,0.06689151,3517.5,3517.0,1.43344514]
[1718360254823,0.55,3517.4,3517.0,1.43344514]
[1718360255836,0.55,3517.6,3517.0,1.43344514]
[1718360256154,0.06689151,3517.5,3517.0,1.43344514]
[1718360256348,0.55,3517.4,3517.0,1.43344514]
[1718360261423,0.06689151,3517.3,3517.0,1.43344514]
[1718360261631,0.55,3517.2,3517.0,1.43344514]
[1718360262772,0.55,3517.3,3517.0,3.78984514]
[1718360262974,0.61689151,3517.6,3517.0,3.78984514]
[1718360268636,0.06689151,3517.5,3517.0,3.78984514]
[1718360268842,0.55,3517.4,3517.0,3.78984514]
[1718360269429,0.55,3517.6,3517.0,3.78984514]
[1718360269645,0.06689151,3517.5,3517.0,3.78984514]
[1718360269851,0.55,3517.4,3517.0,3.78984514]
[1718360270955,0.55,3517.6,3517.0,3.78984514]
[1718360271154,0.06689151,3517.5,3517.0,3.78984514]
[1718360271381,0.55,3517.4,3517.0,3.78984514]
[1718360273306,0.55,3517.7,3517.0,3.78984514]
[1718360273965,0.06689151,3517.6,3517.0,3.78984514]
[1718360274288,0.55,3517.5,3517.0,3.78984514]
[1718360274871,0.55,3517.6,3517.0,3.78984514]
[1718360275076,0.06689151,3517.5,3517.0,3.78984514]
[1718360275380,0.55,3517.4,3517.0,3.78984514]
[1718360276404,0.55,3517.6,3517.0,3.78984514]
[1718360276559,0.06689151,3517.5,3517.0,3.78984514]
[1718360276768,0.55,3517.4,3517.1,0.37898451]
[1718360276966,0.55,3517.4,3517.1,1.81242965]
[1718360277770,0.55,3517.6,3517.1,1.81242965]
[1718360278083,0.06689151,3517.5,3517.1,1.81242965]
[1718360278405,0.55,3517.4,3517.1,1.81242965]
[1718360279275,0.55,3517.4,3517.2,1.84574557]
[1718360279490,0.55,3517.4,3517.2,2.54674557]
[1718360279918,0.55,3517.4,3517.2,1.84574557]
[1718360280271,0.55,3517.4,3517.2,2.54674557]
[1718360280393,2.3028,3517.9,3517.2,2.54674557]
[1718360280593,2.3028,3517.9,3517.3,0.37898451]
[1718360280594,0.55,3517.8,3517.3,0.37898451]
[1718360280825,0.55,3517.8,3517.4,1.43344514]
[1718360283458,0.55,3517.9,3517.4,1.43344514]
[1718360283912,0.408,3517.9,3517.4,1.43344514]
[1718360285313,0.06689151,3517.8,3517.4,1.43344514]
[1718360285950,0.55,3517.7,3517.4,1.43344514]
[1718360292627,0.61689151,3517.7,3517.4,1.43344514]
[1718360295854,2.91759151,3517.7,3516.8,4.0526]
[1718360296077,2.91759151,3517.7,3516.9,1.43344514]
[1718360296439,0.701,3517.3,3516.7,0.59659593]
[1718360296641,0.61689151,3517.2,3516.7,1.43344514]
[1718360298381,0.61689151,3517.2,3516.7,1.82053965]
[1718360298555,0.55,3517.2,3516.7,1.82053965]
[1718360298749,0.61689151,3517.2,3516.7,1.82053965]
[1718360299701,0.55,3517.2,3516.7,1.82053965]
[1718360299844,0.61689151,3517.2,3516.7,1.82053965]
[1718360300847,0.55,3517.2,3516.7,1.82053965]
[1718360301042,0.61689151,3517.2,3516.7,1.82053965]
[1718360301746,3.164,3516.9,3516.2,7.86659593]
[1718360301975,3.164,3516.9,3516.3,1.43344514]
[1718360301976,0.61689151,3516.8,3516.3,1.43344514]
[1718360305264,0.55,3516.8,3516.3,1.43344514]
[1718360305464,0.55,3516.8,3516.3,1.81768965]
[1718360313599,0.55,3516.8,3516.3,4.15538965]
[1718360314298,0.55,3516.8,3516.4,0.05687263]
[1718360314491,0.06689151,3517.2,3516.5,2.13444514]
[1718360314671,0.55,3517.1,3516.5,2.54148557]
[1718360315078,0.55,3517.1,3516.6,0.05686743]
[1718360315404,0.55,3517.1,3516.7,1.43344514]
[1718360322008,0.61689151,3517.1,3516.7,1.43344514]
[1718360322334,0.55,3517.1,3516.7,1.43344514]
[1718360324381,2.4919,3517.0,3516.7,1.43344514]
[1718360336482,0.55,3517.1,3516.7,1.43344514]
[1718360336822,0.61689151,3517.1,3516.7,1.6174937]
[1718360337783,0.55,3517.1,3516.7,1.6174937]
[1718360337982,0.55,3517.1,3516.7,1.43344514]
[1718360345198,0.61689151,3517.1,3516.7,1.43344514]
[1718360349036,0.61689151,3517.1,3516.3,2.30459593]
[1718360349224,2.2707,3517.0,3516.4,1.43344514]
[1718360349535,0.61689151,3516.9,3516.4,1.43344514]
[1718360349738,0.61689151,3516.9,3516.4,1.40544514]
[1718360350617,0.61689151,3516.9,3516.4,1.26344514]
[1718360351617,2.2533,3516.8,3516.4,1.26344514]
[1718360351941,0.61689151,3516.7,3516.4,1.26344514]
[1718360356925,0.61689151,3516.7,3515.9,7.27]
[1718360356926,0.701,3516.5,3515.9,7.27]
[1718360357238,0.61689151,3516.4,3516.0,1.43344514]
[1718360357546,2.4185,3516.3,3516.0,1.43344514]
[1718360360153,1.251,3516.2,3515.6,1.708]
[1718360360458,1.251,3516.2,3515.7,1.43344514]
[1718360361655,0.06689151,3516.1,3515.4,7.27]
[1718360362360,2.8299,3516.0,3515.5,1.43344514]
[1718360362672,0.06689151,3515.9,3515.5,1.43344514]
[1718360365845,0.55,3515.8,3515.5,1.43344514]
[1718360367135,2.3112,3515.6,3515.4,7.27]
[1718360367474,2.3112,3515.6,3515.4,1.43344514]
[1718360369248,2.66742,3515.6,3515.4,1.43344514]
[1718360372740,2.3112,3515.6,3515.4,1.43344514]
[1718360373295,2.3112,3515.6,3514.9,1.708]
[1718360373575,2.3112,3515.6,3515.0,1.43344514]
[1718360374144,1.251,3515.8,3514.8,7.27]
[1718360374145,3.065,3515.4,3514.8,7.27]
[1718360374446,0.61689151,3515.3,3514.9,1.43344514]
[1718360375160,0.06689151,3515.2,3514.9,1.43344514]
[1718360375475,2.364,3515.1,3514.9,1.43344514]
[1718360376373,0.06689151,3515.0,3514.2,1.708]
[1718360376676,0.55,3514.9,3514.3,1.43344514]
[1718360378544,2.341,3514.8,3514.3,1.43344514]
[1718360379168,0.61689151,3514.7,3514.0,1.708]
[1718360379389,0.61689151,3514.7,3514.1,1.43344514]
[1718360384162,0.55,3514.7,3514.1,1.43344514]
[1718360389877,0.55,3514.7,3514.2,0.701]
[1718360390100,0.55,3514.7,3514.2,2.13444514]
[1718360390945,2.341,3514.8,3514.3,1.49035349]
[1718360391146,2.341,3514.8,3514.3,1.43344514]
[1718360395493,2.32214208,3514.8,3514.3,1.43344514]
[1718360406596,0.701,3516.3,3514.8,1.708]
[1718360406729,2.995,3516.5,3515.2,0.701]
[1718360406730,2.89899151,3516.2,3515.2,0.701]
[1718360407673,2.4625,3516.0,3515.2,2.13444514]
[1718360407962,0.06689151,3515.9,3515.2,2.13444514]
[1718360408539,2.4625,3516.0,3515.3,1.43344514]
[1718360408751,2.4625,3516.0,3515.4,0.7578896]
[1718360409078,2.4625,3516.0,3515.6,0.701]
[1718360409239,0.701,3516.5,3515.6,2.13444514]
[1718360409240,2.3146,3516.4,3515.6,2.13444514]
[1718360409435,0.30156,3516.3,3515.6,2.13444514]
[1718360409739,2.38149151,3516.4,3515.8,0.701]
[1718360409740,2.3146,3516.4,3515.8,0.701]
[1718360409975,2.3146,3516.4,3515.9,1.43344514]
[1718360410361,2.2632,3516.7,3516.0,0.701]
[1718360410575,2.2632,3516.7,3516.0,2.13444514]
[1718360411070,2.2632,3516.7,3516.1,1.43344514]
[1718360411271,2.995,3517.5,3516.2,0.701]
[1718360411456,0.701,3517.2,3516.3,1.43344514]
[1718360411778,0.06689151,3517.1,3516.3,1.43344514]
[1718360413079,0.701,3516.9,3516.3,1.43344514]
[1718360413372,0.06689151,3516.8,3516.3,1.43344514]
[1718360413536,0.55,3516.7,3516.3,1.43344514]
[1718360413737,0.06689151,3516.6,3516.3,1.43344514]
[1718360417582,0.36592066,3516.6,3515.8,1.708]
[1718360417881,0.701,3516.4,3515.7,7.27]
[1718360418038,0.701,3516.2,3515.7,8.70344514]
[1718360418235,0.61689151,3516.1,3515.7,8.70344514]
[1718360418635,0.55,3516.1,3515.7,8.70344514]
[1718360418841,0.61689151,3516.3,3515.7,8.70344514]
[1718360419085,0.55,3516.3,3515.8,1.49032935]
[1718360419381,0.55,3516.4,3515.8,1.43344514]
[1718360419737,0.61689151,3516.4,3515.8,1.43344514]
[1718360419937,0.61689151,3516.4,3515.7,7.27]
[1718360420144,0.61689151,3516.4,3515.7,8.70344514]
[1718360422054,0.55,3516.4,3515.8,1.43344514]
[1718360422242,0.61689151,3516.4,3515.8,1.43344514]
[1718360422955,1.31789151,3516.4,3515.8,1.43344514]
[1718360424289,1.69815066,3516.4,3515.8,1.43344514]
[1718360426686,1.63125915,3516.4,3515.8,1.43344514]
[1718360430794,2.2905,3516.1,3515.7,7.27]
[1718360431100,0.61689151,3516.0,3515.7,7.27]
[1718360431474,1.31789151,3516.0,3514.9,2.4467]
[1718360431674,1.31789151,3516.0,3515.0,2.13444514]
[1718360433997,2.3444,3515.5,3515.0,1.43344514]
[1718360434193,0.06689151,3515.4,3515.0,1.43344514]
[1718360437601,0.701,3515.3,3514.4,7.27]
[1718360437914,2.3669,3515.1,3514.5,1.43344514]
[1718360438070,0.98537066,3515.0,3514.5,1.43344514]
[1718360440913,0.61689151,3515.0,3514.5,1.43344514]